bitfinex-derivatives/quotes_SOLF0:USTF0_20250109
["timestamp","ask_amount","ask_price","bid_price","bid_amount"]
[1736394294879,6.45534735,194.99,194.92,6.45534735]
[1736394295286,6.45534735,195.01,194.95,2.5657]
[1736394296295,2.5652,195.0,194.95,2.5657]
[1736394297190,6.45534735,194.99,194.95,2.5657]
[1736394297688,6.45534735,194.97,194.92,2.5661]
[1736394297989,6.45534735,194.97,194.91,222.02855928]
[1736394298388,6.45534735,194.97,194.91,200.60314735]
[1736394298992,6.45534735,194.95,194.91,3.1478]
[1736394299193,6.45534735,194.95,194.9,2.5665]
[1736394299688,6.45534735,194.93,194.88,24.17698193]
[1736394300190,6.45534735,194.93,194.88,21.61028193]
[1736394300493,6.45534735,194.89,194.88,21.61028193]
[1736394301093,3.02,194.92,194.88,21.61028193]
[1736394301495,3.02,194.92,194.88,0.18487]
[1736394302995,3.02,194.92,194.88,2.75157]
[1736394305495,3.02,194.92,194.9,2.5664]
[1736394307698,9.02114735,194.95,194.9,2.5664]
[1736394308701,6.45534735,194.95,194.89,9.02194735]
[1736394308903,2.566,194.94,194.89,9.02194735]
[1736394309403,9.02144735,194.93,194.88,2.75157]
[1736394309605,9.02144735,194.93,194.88,0.18487]
[1736394310200,2.5662,194.92,194.88,0.18487]
[1736394310606,6.45534735,194.93,194.89,2.5666]
[1736394310901,6.45534735,194.95,194.89,6.45534735]
[1736394311798,6.45534735,194.95,194.9,2.5664]
[1736394312104,6.45534735,194.95,194.89,6.45534735]
[1736394312296,6.45534735,194.93,194.89,2.5666]
[1736394315105,2.5663,194.92,194.87,2.9959]
[1736394315295,6.45534735,194.93,194.87,2.9959]
[1736394315797,2.5664,194.91,194.87,5.5627]
[1736394315996,6.45534735,194.93,194.87,2.9959]
[1736394316709,3.02,194.97,194.88,6.45534735]
[1736394317010,6.45534735,194.95,194.88,6.45534735]
[1736394317402,2.5661,194.94,194.9,2.5664]
[1736394318404,1.7435,195.02,194.93,2.566]
[1736394318601,6.45534735,194.98,194.93,2.566]
[1736394319609,2.5654,194.99,194.92,6.45534735]
[1736394319610,9.02074735,194.99,194.94,2.5659]
[1736394323516,6.45534735,194.97,194.94,2.5659]
[1736394324114,6.45534735,194.95,194.9,28.56235028]
[1736394324312,6.45534735,194.93,194.9,28.56235028]
[1736394324814,6.45534735,194.91,194.88,28.56235028]
[1736394325716,3.02,194.96,194.87,2.9959]
[1736394326110,6.45534735,194.94,194.89,2.5666]
[1736394328022,6.45534735,194.92,194.87,2.9959]
[1736394329020,6.45534735,194.9,194.87,2.5669]
[1736394329917,3.02,194.91,194.87,2.5669]
[1736394331914,3.02,194.91,194.88,2.5667]
[1736394333317,9.02104735,194.96,194.9,6.45534735]
[1736394334320,6.45534735,194.94,194.91,2.5664]
[1736394334521,6.45534735,194.94,194.87,7.13693835]
[1736394334715,6.45534735,194.92,194.87,7.13693835]
[1736394335524,6.45534735,194.92,194.85,16.6122857]
[1736394335819,6.45534735,194.92,194.87,2.5668]
[1736394336919,9.02154735,194.92,194.87,2.5668]
[1736394338316,6.45534735,194.9,194.85,7.13693835]
[1736394338520,9.02194735,194.9,194.85,2.5671]
[1736394340221,3.02,194.92,194.86,6.45534735]
[1736394341121,3.02,194.97,194.88,6.45534735]
[1736394341423,6.45534735,194.95,194.9,6.45534735]
[1736394342019,6.45534735,194.95,194.92,2.5662]
[1736394342521,6.45534735,194.95,194.9,6.45534735]
[1736394342917,6.45534735,194.95,194.9,2.5665]
[1736394343621,9.02134735,194.95,194.9,2.5665]
[1736394344417,2.5657,194.96,194.89,6.45534735]
[1736394344622,6.45534735,194.97,194.91,6.45534735]
[1736394345423,2.5655,194.98,194.93,2.566]
[1736394345625,9.02084735,194.98,194.91,6.45534735]
[1736394347024,6.45534735,194.96,194.93,2.5661]
[1736394347225,9.02114735,194.96,194.9,3.0533]
[1736394347626,9.02114735,194.96,194.9,5.6197]
[1736394348024,9.02114735,194.96,194.9,3.0533]
[1736394348224,3.02,194.99,194.9,9.50864735]
[1736394348420,6.45534735,194.97,194.9,9.50864735]
[1736394348622,6.45534735,194.97,194.92,2.5662]
[1736394348931,6.45534735,194.97,194.9,9.50864735]
[1736394349628,6.45534735,194.97,194.93,2.566]
[1736394349822,6.45534735,194.97,194.9,9.50864735]
[1736394350024,6.45534735,194.97,194.9,16.6455857]
[1736394350231,6.45534735,194.97,194.93,2.566]
[1736394350425,9.02094735,194.97,194.93,2.566]
[1736394351428,6.45534735,194.97,194.9,9.50864735]
[1736394351628,6.45534735,194.97,194.94,2.5659]
[1736394354230,6.45534735,194.97,194.93,2.5661]
[1736394354630,6.45534735,194.97,194.9,9.50864735]
[1736394354830,5.5853,194.99,194.9,9.50864735]
[1736394355128,2.5651,195.01,194.92,6.45534735]
[1736394355334,6.45534735,195.0,194.94,6.45534735]
[1736394356228,6.45534735,195.0,194.97,2.5655]
[1736394356430,6.45534735,195.0,194.94,6.45534735]
[1736394356731,2.5651,195.01,194.94,6.45534735]
[1736394356927,3.02,195.05,194.98,6.45534735]
[1736394357134,66.87926576,195.04,194.98,6.45534735]
[1736394357426,6.45534735,195.04,195.0,2.5651]
[1736394357628,6.45534735,195.04,194.97,6.45534735]
[1736394357829,6.45534735,195.0,194.95,6.45534735]
[1736394358027,6.45534735,194.96,194.94,7.13693835]
[1736394358226,6.45534735,194.96,194.94,47.72095426]
[1736394359129,6.45534735,194.96,194.91,191.0]
[1736394360430,6.45534735,194.94,194.91,191.0]
[1736394360730,6.45534735,194.92,194.9,1.4558]
[1736394360934,9.47534735,194.92,194.9,1.4558]
[1736394362129,9.47534735,194.92,194.87,6.45534735]
[1736394362130,9.47534735,194.92,194.86,7.32452835]
[1736394362330,6.45534735,194.9,194.86,7.32452835]
[1736394362735,9.02184735,194.9,194.86,0.18759]
[1736394363232,9.02184735,194.9,194.87,4.97837017]
[1736394363233,6.45534735,194.9,194.87,4.97837017]
[1736394363937,3.02,194.89,194.86,28.74994028]
[1736394364138,3.02,194.89,194.86,31.31684028]
[1736394364538,3.02,194.89,194.86,28.74994028]
[1736394364738,3.02,194.89,194.87,2.5668]
[1736394365836,3.02,194.9,194.87,2.5668]
[1736394367438,3.02,194.9,194.87,9.70373835]
[1736394367938,3.02,194.9,194.87,2.5668]
[1736394368337,3.02,194.9,194.87,9.70373835]
[1736394369136,3.02,194.9,194.87,2.5668]
[1736394371333,80.06,195.01,194.86,7.13693835]
[1736394371540,9.02124735,194.95,194.89,6.45534735]
[1736394371741,3.02,194.94,194.89,6.45534735]
[1736394372842,6.45534735,194.93,194.89,2.5666]
[1736394375240,6.45534735,194.91,194.88,7.13693835]
[1736394375735,6.45534735,194.91,194.87,7.13693835]
[1736394376242,6.45534735,194.91,194.86,9.02224735]
[1736394376435,6.45534735,194.91,194.87,2.5668]
[1736394377139,9.47534735,194.94,194.89,2.5666]
[1736394377542,9.47534735,194.94,194.91,2.5663]
[1736394377842,3.02,194.97,194.9,6.45534735]
[1736394378042,9.47534735,194.98,194.9,6.45534735]
[1736394378241,6.45534735,194.99,194.92,6.45534735]
[1736394378536,6.45534735,195.02,194.96,6.45534735]
[1736394378745,6.45534735,195.02,194.97,2.5656]
[1736394378940,9.47534735,195.04,194.98,6.45534735]
[1736394379539,9.47534735,195.04,194.98,9.02074735]
[1736394379740,6.45534735,195.02,194.98,2.5654]
[1736394381142,6.45534735,195.02,194.96,6.45534735]
[1736394381840,6.45534735,195.0,194.95,28.56235028]
[1736394382040,6.45534735,195.02,194.96,6.45534735]
[1736394382543,9.47534735,195.03,194.96,6.45534735]
[1736394383038,12.04014735,195.03,194.96,6.45534735]
[1736394383536,12.04014735,195.03,194.97,54.69016749]
[1736394384145,6.45534735,195.01,194.97,54.69016749]
[1736394384343,6.45534735,195.01,194.98,5.22556344]
[1736394384842,9.02034735,195.01,194.98,5.22556344]
[1736394385046,6.45534735,194.99,194.98,5.22556344]
[1736394385238,6.45534735,194.99,194.95,28.56235028]
[1736394385432,6.45534735,194.97,194.95,28.56235028]
[1736394386246,2.5658,194.95,194.93,7.13693835]
[1736394386436,6.45534735,194.95,194.93,7.13693835]
[1736394387046,9.02114735,194.95,194.93,7.13693835]
[1736394387243,9.02114735,194.95,194.89,31.12895028]
[1736394387444,2.5658,194.95,194.89,31.12895028]
[1736394387845,2.566,194.94,194.9,12.36207127]
[1736394388049,3.02,194.93,194.9,12.36207127]
[1736394388349,3.02,194.93,194.88,8.65403835]
[1736394389249,3.02,194.93,194.88,7.13693835]
[1736394390244,2.5663,194.92,194.88,7.13693835]
[1736394390647,2.5664,194.91,194.88,7.13693835]
[1736394394451,2.5662,194.92,194.88,7.13693835]
[1736394394956,2.5661,194.93,194.89,5.2261777]
[1736394395147,3.02,194.92,194.89,5.2261777]
[1736394396057,3.02,194.92,194.89,7.13693835]
[1736394396858,3.02,194.92,194.88,7.13693835]
[1736394397059,5.5863,194.92,194.88,7.13693835]
[1736394397359,3.02,194.92,194.89,5.2194367]
[1736394397857,2.5659,194.95,194.89,5.2194367]
[1736394398059,3.02,194.94,194.89,5.2194367]
[1736394398357,10.11608661,195.0,194.9,5.2194367]
[1736394398556,5.5854,194.99,194.9,5.2194367]
[1736394398758,5.5854,194.99,194.91,13.87767505]
[1736394399355,5.5854,194.99,194.93,2.566]
[1736394399553,3.02,194.99,194.93,2.566]
[1736394399858,2.5654,194.98,194.93,2.566]
[1736394400259,2.5654,194.98,194.92,2.5662]
[1736394402263,2.5654,194.98,194.93,5.21960108]
[1736394403065,2.5654,194.98,194.93,7.13693835]
[1736394403362,2.5654,194.98,194.93,9.70303835]
[1736394404064,3.02,194.97,194.93,9.70303835]
[1736394405460,2.5654,194.98,194.93,9.70303835]
[1736394405658,10.11608661,195.07,194.93,17.25302496]
[1736394405860,13.13608661,195.07,194.94,1.4726]
[1736394406061,10.11608661,195.07,194.94,1.4726]
[1736394406258,2.5648,195.03,194.97,2.5655]
[1736394406463,10.11608661,195.07,194.97,3.02]
[1736394407065,2.5648,195.03,194.98,12.35667228]
[1736394407256,9.03288748,195.03,194.98,12.35667228]
[1736394407560,9.03288748,195.03,194.98,7.13693835]
[1736394408159,6.46808748,195.03,194.98,7.13693835]
[1736394408469,6.46808748,195.06,195.01,6.46808748]
[1736394409663,6.46808748,195.06,195.0,28.56235028]
[1736394409664,6.46808748,195.09,195.03,6.46808748]
[1736394411161,2.5641,195.08,195.03,9.03278748]
[1736394412258,2.5639,195.1,195.04,2.5646]
[1736394412463,6.46808748,195.08,195.04,2.5646]
[1736394413966,2.564,195.09,195.04,2.5646]
[1736394414367,6.46808748,195.06,195.02,1.4538]
[1736394415769,9.03258748,195.06,195.02,1.4538]
[1736394416364,6.46808748,195.04,195.02,1.4538]
[1736394417467,9.03258748,195.06,195.02,1.4538]
[1736394418968,6.46808748,195.04,195.02,1.4538]
[1736394419269,6.46808748,195.04,195.01,1.4882]
[1736394419465,6.46808748,195.02,194.99,7.13693835]
[1736394419665,6.46808748,195.0,194.99,7.13693835]
[1736394420068,9.03328748,195.0,194.99,7.13693835]
[1736394420570,9.03328748,195.0,194.96,1.6053]
[1736394420870,2.5649,195.02,194.97,2.5656]
[1736394421065,6.46808748,195.02,194.96,8.07338748]
[1736394421265,3.0,195.03,194.96,1.6053]
[1736394421465,3.0,195.08,194.96,1.6053]
[1736394421671,3.0,195.08,194.97,1.4781]
[1736394421871,3.0,195.08,194.98,3.0]
[1736394422371,2.5644,195.07,195.01,2.5649]
[1736394422568,3.0,195.08,194.98,3.0]
[1736394422772,3.0,195.08,194.98,10.13693835]
[1736394423364,3.0,195.08,194.98,3.0]
[1736394423570,2.5645,195.05,194.99,2.5652]
[1736394424067,2.5648,195.03,194.98,2.5654]
[1736394424371,13.1055279,195.03,194.96,30.16765028]
[1736394424768,2.565,195.01,194.96,23.03071193]
[1736394424966,2.565,195.01,194.96,1.6053]
[1736394425773,2.5652,195.0,194.96,1.6053]
[1736394426266,13.1055279,195.03,194.96,1.6053]
[1736394426478,2.5655,194.98,194.94,1.5364]
[1736394426966,2.5656,194.97,194.93,28.56235028]
[1736394427167,10.1055279,194.97,194.93,28.56235028]
[1736394427370,10.1055279,194.97,194.92,7.13693835]
[1736394428064,2.5659,194.95,194.92,7.13693835]
[1736394428370,2.5659,194.95,194.91,1.504]
[1736394430871,10.1055279,194.97,194.91,1.504]
[1736394431173,2.566,194.94,194.89,7.13693835]
[1736394431579,2.566,194.94,194.88,32.73065028]
[1736394431968,3.0,194.93,194.88,30.16395028]
[1736394432176,10.1055279,194.91,194.88,28.56235028]
[1736394432573,2.5666,194.89,194.88,28.56235028]
[1736394432779,10.1055279,194.91,194.86,7.13693835]
[1736394433074,2.5668,194.88,194.86,7.13693835]
[1736394433382,5.5668,194.88,194.86,7.13693835]
[1736394433778,5.5668,194.88,194.83,28.56235028]
[1736394433979,3.0,194.88,194.83,31.12975028]
[1736394434677,3.0,194.88,194.84,5.20780391]
[1736394435283,3.0,194.88,194.83,9.70433835]
[1736394436684,3.0,194.88,194.83,2.5674]
[1736394438685,2.5665,194.91,194.84,2.5672]
[1736394438891,5.5865,194.91,194.82,7.13693835]
[1736394439092,10.1055279,194.94,194.82,7.13693835]
[1736394439293,3.02,194.92,194.83,54.55168159]
[1736394440190,3.02,194.92,194.84,54.55168159]
[1736394440390,2.5666,194.89,194.84,57.11898159]
[1736394440891,2.5666,194.89,194.84,2.5673]
[1736394441582,2.5666,194.89,194.82,7.13693835]
[1736394441793,10.1055279,194.91,194.82,9.70433835]
[1736394441794,2.5668,194.88,194.82,9.70433835]
[1736394441990,3.02,194.87,194.82,9.70433835]
[1736394442390,3.02,194.87,194.82,2.5674]
[1736394443191,3.02,194.87,194.83,2.5674]
[1736394444087,5.5869,194.87,194.82,2.5675]
[1736394444288,5.5869,194.87,194.81,8.65393835]
[1736394444487,3.02,194.87,194.81,8.65393835]
[1736394445390,3.02,194.87,194.81,1.517]
[1736394446091,2.567,194.86,194.81,4.0847]
[1736394447385,3.02,194.87,194.81,4.0847]
[1736394447695,5.5869,194.87,194.81,4.0847]
[1736394448395,10.1055279,194.85,194.8,7.13693835]
[1736394448594,10.1055279,194.81,194.8,4.50853835]
[1736394448798,13.1255279,194.81,194.8,4.50853835]
[1736394449191,10.1055279,194.84,194.8,4.50853835]
[1736394449392,2.5673,194.85,194.8,4.50853835]
[1736394449591,3.02,194.86,194.77,13.1255279]
[1736394450089,3.02,194.86,194.82,2.5675]
[1736394450889,3.02,194.86,194.83,2.5674]
[1736394451091,3.02,194.86,194.77,13.1255279]
[1736394451399,3.02,194.86,194.77,10.1055279]
[1736394451597,5.5871,194.86,194.8,2.5677]
[1736394452299,5.5871,194.86,194.78,3.02]
[1736394452498,3.02,194.86,194.81,2.5676]
[1736394453500,3.02,194.86,194.78,3.02]
[1736394453699,2.5667,194.89,194.8,10.1055279]
[1736394453899,2.5667,194.89,194.81,1.5105]
[1736394454598,2.5667,194.89,194.83,2.5673]
[1736394455395,2.5667,194.89,194.81,1.5105]
[1736394455601,2.5667,194.89,194.84,2.5673]
[1736394456300,2.5667,194.89,194.81,1.5105]
[1736394456500,2.5667,194.89,194.83,2.5673]
[1736394458097,2.5665,194.91,194.85,2.5671]
[1736394458296,3.02,194.92,194.83,10.1055279]
[1736394458501,10.1055279,194.97,194.84,3.0976]
[1736394458696,2.5657,194.96,194.87,2.5668]
[1736394459002,3.02,194.96,194.86,10.1055279]
[1736394459198,5.5857,194.96,194.89,2.5666]
[1736394459404,6.47361569,194.95,194.89,9.04021569]
[1736394459603,5.5857,194.96,194.89,6.47361569]
[1736394459804,6.47361569,194.95,194.89,6.47361569]
[1736394460005,6.47361569,194.95,194.89,9.04021569]
[1736394460299,9.03941569,194.95,194.89,9.04021569]
[1736394460804,2.5658,194.95,194.89,9.04021569]
[1736394461002,2.5657,194.96,194.9,2.5665]
[1736394461202,6.47361569,194.96,194.9,2.5665]
[1736394461398,3.02,194.98,194.9,2.5665]
[1736394461602,2.5654,194.98,194.92,2.5662]
[1736394461801,3.02,194.99,194.88,26.05281193]
[1736394462105,2.5657,194.96,194.91,5.20896113]
[1736394462306,3.02,194.99,194.91,5.20896113]
[1736394463107,2.5656,194.97,194.92,47.46860745]
[1736394464002,10.11365005,194.98,194.92,47.46860745]
[1736394464208,10.11365005,194.98,194.91,21.42541193]
[1736394464807,2.5658,194.95,194.91,21.42541193]
[1736394465109,10.11365005,194.98,194.91,21.42541193]
[1736394465309,10.11365005,194.98,194.89,21.42541193]
[1736394465807,2.5657,194.96,194.9,50.03653915]
[1736394466512,10.11365005,194.98,194.91,47.47013915]
[1736394466811,3.02,194.99,194.91,47.47013915]
[1736394467011,3.02,194.99,194.92,3.083]
[1736394467313,80.06,195.0,194.92,3.083]
[1736394467513,83.08,195.0,194.92,3.083]
[1736394467716,2.5655,194.98,194.93,5.20894544]
[1736394468418,83.08,195.0,194.93,5.20894544]
[1736394468613,2.5656,194.97,194.92,24.50841193]
[1736394469318,2.5656,194.97,194.92,3.083]
[1736394470513,2.5656,194.97,194.92,5.6492]
[1736394470708,2.5654,194.98,194.92,5.6492]
[1736394471108,2.5654,194.98,194.93,2.5661]
[1736394471916,2.5654,194.98,194.92,24.50841193]
[1736394472221,2.5656,194.97,194.92,5.6492]
[1736394478822,10.11365005,194.98,194.92,3.083]
[1736394479029,2.5658,194.96,194.92,1.6063]
[1736394479223,5.5658,194.96,194.92,1.6063]
[1736394480225,3.0,194.96,194.93,2.5661]
[1736394481429,3.0,194.96,194.94,2.566]
[1736394481831,2.5656,194.98,194.94,2.566]
[1736394483637,2.5656,194.98,194.93,9.03721472]
[1736394484540,6.47111472,194.95,194.91,21.42541193]
[1736394484836,6.47111472,194.93,194.91,21.42541193]
[1736394485035,2.5662,194.92,194.91,21.42541193]
[1736394485437,2.5662,194.92,194.87,21.42541193]
[1736394485629,6.47111472,194.91,194.87,21.42541193]
[1736394486136,6.47111472,194.91,194.87,2.5668]
[1736394486338,9.03721472,194.93,194.87,9.03791472]
[1736394487340,9.03721472,194.93,194.87,27.89652665]
[1736394487537,9.03721472,194.93,194.88,5.6931]
[1736394488140,6.47111472,194.89,194.87,21.42541193]
[1736394488341,3.0,194.88,194.87,21.42541193]
[1736394488733,6.47111472,194.89,194.85,1.4896]
[1736394488940,3.0,194.88,194.85,1.4896]
[1736394489144,6.47111472,194.93,194.86,6.47111472]
[1736394489341,6.47111472,194.91,194.86,2.567]
[1736394489740,6.47111472,194.91,194.85,1.4896]
[1736394490241,6.47111472,194.89,194.85,1.4896]
[1736394490441,6.47111472,194.89,194.86,5.20985346]
[1736394491144,9.03771472,194.89,194.86,5.20985346]
[1736394491541,6.47111472,194.89,194.85,1.4896]
[1736394493244,2.5668,194.88,194.85,1.4896]
[1736394493442,3.0,194.87,194.85,1.4896]
[1736394498050,7.37139888,195.01,194.85,1.4896]
[1736394498251,6.47111472,194.94,194.87,9.03801472]
[1736394498448,3.0,194.93,194.87,9.03801472]
[1736394498655,6.47111472,194.94,194.87,9.03801472]
[1736394498857,3.0,194.93,194.87,9.03801472]
[1736394499862,2.5662,194.92,194.87,6.47111472]
[1736394501259,2.5662,194.92,194.88,5.20587348]
[1736394501761,2.5664,194.91,194.88,5.20587348]
[1736394501962,2.5664,194.91,194.87,6.47111472]
[1736394502159,2.5664,194.91,194.86,22.99341193]
[1736394502363,6.47111472,194.9,194.86,21.42541193]
[1736394502661,6.47111472,194.9,194.85,22.91501193]
[1736394502862,2.567,194.87,194.85,22.91501193]
[1736394503064,5.567,194.87,194.85,22.91501193]
[1736394503460,5.567,194.87,194.85,1.4896]
[1736394508371,5.567,194.87,194.82,27.89652665]
[1736394509073,5.567,194.87,194.83,5.20677281]
[1736394509673,5.567,194.87,194.82,35.02118714]
[1736394510367,2.5671,194.86,194.82,35.02118714]
[1736394510569,2.5671,194.86,194.82,28.55007242]
[1736394511171,2.5671,194.86,194.83,5.2073992]
[1736394511874,2.5671,194.86,194.81,69.2327259]
[1736394512076,2.5671,194.86,194.76,391.79148705]
[1736394512077,6.47111472,194.82,194.75,50.45592245]
[1736394512370,194.0,194.9,194.75,50.45592245]
[1736394512572,6.47111472,194.76,194.75,50.45592245]
[1736394512877,12.17941472,194.76,194.75,50.45592245]
[1736394513075,9.61111472,194.76,194.68,284.93926331]
[1736394513267,6.47111472,194.74,194.68,284.93926331]
[1736394513669,2.569,194.72,194.65,6.47111472]
[1736394513869,9.61111472,194.71,194.64,6.47111472]
[1736394514072,3.14,194.7,194.64,6.47111472]
[1736394514278,174.62290255,194.65,194.61,1.5372]
[1736394514470,3.14,194.65,194.61,1.5372]
[1736394515977,3.14,194.67,194.62,6.47111472]
[1736394516780,3.14,194.67,194.64,6.47111472]
[1736394517178,247.18633871,194.7,194.64,6.47111472]
[1736394517379,3.14,194.69,194.62,13.13147467]
[1736394517580,174.62290255,194.68,194.62,13.13147467]
[1736394517872,177.76290255,194.69,194.62,13.13147467]
[1736394518078,177.76290255,194.69,194.64,2.5699]
[1736394518277,3.14,194.69,194.64,2.5699]
[1736394518479,172.20420255,194.68,194.65,10.13987467]
[1736394518781,209.94412905,194.77,194.68,2.5693]
[1736394518782,2.5685,194.75,194.68,2.5693]
[1736394518977,265.02106358,194.76,194.68,2.5693]
[1736394519278,209.94412905,194.76,194.68,2.5693]
[1736394520180,2.5686,194.74,194.68,2.5693]
[1736394520380,2.5686,194.74,194.67,2.5695]
[1736394520582,2.5691,194.71,194.65,10.13987467]
[1736394520779,211.43942905,194.76,194.62,16.27147467]
[1736394520985,10.13987467,194.74,194.62,16.27147467]
[1736394522075,2.5691,194.7,194.64,2.5698]
[1736394526685,3.12,194.71,194.62,16.27147467]
[1736394526982,5.689,194.71,194.65,2.5697]
[1736394527988,3.12,194.71,194.67,2.5694]
[1736394528188,5.6688,194.73,194.67,2.5694]
[1736394530491,4.5815,194.75,194.65,10.13987467]
[1736394530693,5.6686,194.75,194.65,10.13987467]
[1736394531492,3.1,194.75,194.69,2.5692]
[1736394531692,2.5686,194.74,194.69,2.5692]
[1736394531893,2.5686,194.74,194.68,2.5694]
[1736394532088,10.13987467,194.74,194.62,13.13147467]
[1736394532690,10.13987467,194.74,194.64,2.5699]
[1736394532888,2.569,194.71,194.64,2.5699]
[1736394533089,3.1,194.7,194.64,2.5699]
[1736394533492,3.1,194.7,194.65,2.5697]
[1736394533797,3.1,194.7,194.62,11.66397467]
[1736394533798,5.6691,194.7,194.62,11.66397467]
[1736394533996,3.1,194.7,194.61,1.5372]
[1736394534189,3.1,194.7,194.61,2.5703]
[1736394534393,1.5763,194.69,194.61,2.5703]
[1736394534992,2.5695,194.67,194.61,2.5703]
[1736394535993,2.5694,194.69,194.63,2.57]
[1736394536197,2.5694,194.69,194.6,2.9555]
[1736394538199,2.5694,194.69,194.63,2.57]
[1736394541301,6.49245955,194.66,194.6,9.44795955]
[1736394541494,6.49245955,194.66,194.62,2.5702]
[1736394541801,6.49245955,194.66,194.6,9.44795955]
[1736394541995,6.49245955,194.66,194.61,2.5703]
[1736394542194,6.49245955,194.64,194.61,2.5703]
[1736394543095,3.06,194.65,194.61,2.5703]
[1736394543803,9.06265955,194.62,194.57,2.5708]
[1736394544003,6.49245955,194.62,194.56,6.49245955]
[1736394544199,2.5708,194.57,194.52,2.5714]
[1736394544401,9.55245955,194.56,194.5,6.49245955]
[1736394544795,9.55245955,194.56,194.49,2.5718]
[1736394544991,9.55245955,194.56,194.46,1.5028]
[1736394545195,3.06,194.56,194.46,1.5028]
[1736394545396,1.5379,194.68,194.55,6.49245955]
[1736394545698,6.49245955,194.63,194.57,6.49245955]
[1736394546097,1.5379,194.68,194.57,6.49245955]
[1736394546298,6.49245955,194.64,194.57,6.49245955]
[1736394546900,1.5379,194.68,194.48,1.5234]
[1736394546901,6.49245955,194.59,194.52,6.49245955]
[1736394547096,3.12,194.58,194.52,6.49245955]
[1736394547295,3.12,194.58,194.54,2.5712]
[1736394548100,6.49245955,194.55,194.46,1.5028]
[1736394548303,6.49245955,194.55,194.48,6.49245955]
[1736394548600,6.49245955,194.53,194.48,6.49245955]
[1736394548796,3.12,194.52,194.48,6.49245955]
[1736394549301,3.12,194.52,194.46,1.5028]
[1736394550700,5.6914,194.53,194.48,2.5719]
[1736394551101,3.12,194.53,194.46,1.5028]
[1736394551303,3.12,194.53,194.49,2.5719]
[1736394552904,3.12,194.53,194.51,2.5716]
[1736394553704,2.5707,194.58,194.47,11.73030815]
[1736394553905,3.12,194.57,194.47,11.73030815]
[1736394554309,3.12,194.57,194.55,2.5711]
[1736394554700,3.12,194.57,194.5,10.15790815]
[1736394554901,3.12,194.57,194.55,2.5711]
[1736394555912,10.15790815,194.66,194.53,10.15790815]
[1736394556098,10.15790815,194.66,194.56,10.15790815]
[1736394556504,12.72770815,194.66,194.59,2.5706]
[1736394556706,10.15790815,194.66,194.56,10.15790815]
[1736394556902,10.15790815,194.66,194.57,3.12]
[1736394557104,10.15790815,194.66,194.61,2.5703]
[1736394558504,12.72760815,194.66,194.6,2.5703]
[1736394558706,10.15790815,194.66,194.57,24.45463227]
[1736394559106,10.15790815,194.66,194.6,2.5703]
[1736394559808,10.15790815,194.66,194.61,2.5703]
[1736394569410,6.49382136,194.64,194.61,2.5703]
[1736394569910,6.49382136,194.62,194.56,41.30136533]
[1736394570108,3.1,194.64,194.56,41.30136533]
[1736394570109,6.49382136,194.57,194.56,41.30136533]
[1736394570411,9.61382136,194.57,194.55,56.89235272]
[1736394570613,2.571,194.56,194.55,56.89235272]
[1736394570915,9.61382136,194.57,194.47,2.9564]
[1736394571213,2.5711,194.56,194.48,6.49382136]
[1736394571410,2.5711,194.56,194.47,2.9564]
[1736394572111,2.5711,194.56,194.49,2.5719]
[1736394573012,13.27708211,194.57,194.47,2.9564]
[1736394574208,15.84788211,194.57,194.51,2.5716]
[1736394574608,13.27708211,194.57,194.47,2.9564]
[1736394574813,13.27708211,194.57,194.52,2.5715]
[1736394575012,3.12,194.56,194.48,10.15708211]
[1736394576008,3.12,194.56,194.54,2.5712]
[1736394576210,3.12,194.56,194.48,10.15708211]
[1736394577315,2.5708,194.58,194.54,2.5712]
[1736394577514,11.64158211,194.6,194.54,2.5712]
[1736394578008,10.15708211,194.63,194.51,10.15708211]
[1736394578209,13.26548211,194.66,194.51,10.15708211]
[1736394578517,13.26548211,194.66,194.59,2.5705]
[1736394578518,2.5699,194.64,194.59,2.5705]
[1736394579213,16.38548211,194.66,194.6,2.5704]
[1736394579214,2.5698,194.65,194.6,2.5704]
[1736394579409,16.38548211,194.66,194.6,2.5704]
[1736394579615,16.38548211,194.66,194.55,7.7032]